bitfinex/quotes_ETHUSD_20260108
["timestamp","ask_amount","ask_price","bid_price","bid_amount"]
[1767888237586,3.22457565,3101.2,3100.1,0.95127839]
[1767888237791,0.30218624,3101.0,3100.1,0.95127839]
[1767888238017,0.30218624,3100.9,3100.1,0.95127839]
[1767888238317,3.22457565,3101.2,3100.1,0.95127839]
[1767888238318,0.002,3100.4,3100.1,0.95127839]
[1767888238518,3.22457565,3101.2,3100.1,0.95127839]
[1767888238825,0.002,3101.4,3100.3,0.95027839]
[1767888239011,0.96894568,3102.4,3101.2,0.95027839]
[1767888239214,0.30207322,3102.3,3101.3,0.46215267]
[1767888239389,0.32615658,3102.2,3101.3,0.46215267]
[1767888239585,0.30154274,3102.1,3101.1,4.06962905]
[1767888239930,0.30154274,3102.1,3100.8,0.95027839]
[1767888239931,1.29457178,3102.0,3100.8,4.0699674]
[1767888240218,0.30154274,3101.9,3100.8,0.845]
[1767888240390,0.02408336,3101.8,3100.8,0.845]
[1767888240821,0.02408336,3101.9,3100.8,0.845]
[1767888241126,0.02408336,3101.9,3100.8,4.06994565]
[1767888241127,0.30155965,3101.8,3100.8,4.06994565]
[1767888241311,3.22393448,3101.8,3100.8,4.06994565]
[1767888241515,0.96894568,3101.6,3100.1,0.95127839]
[1767888241699,1.29442626,3101.5,3100.3,3.22541016]
[1767888242022,4.54351332,3101.3,3100.1,0.001]
[1767888242320,0.91893053,3101.1,3100.1,0.001]
[1767888242534,1.17048058,3101.2,3099.8,0.001]
[1767888242535,0.91893053,3100.8,3099.8,0.001]
[1767888242821,0.77495105,3100.7,3099.8,0.001]
[1767888243035,0.30151787,3100.6,3099.8,0.001]
[1767888243193,0.02408336,3100.5,3099.8,0.001]
[1767888243389,3.2253308,3100.5,3099.8,0.001]
[1767888243790,3.22522349,3100.6,3099.8,0.001]
[1767888244027,0.30151433,3100.5,3099.8,0.001]
[1767888244325,0.67519613,3100.4,3099.8,0.001]
[1767888244489,3.22522349,3100.6,3099.8,0.001]
[1767888244685,0.30151061,3100.5,3099.8,0.001]
[1767888244887,3.22522349,3100.6,3099.8,0.001]
[1767888245123,0.30151201,3100.5,3099.8,0.001]
[1767888245328,0.30151201,3100.4,3099.8,0.001]
[1767888245490,3.24957766,3100.3,3099.8,0.001]
[1767888245826,1.82418683,3100.2,3098.9,0.98489868]
[1767888246023,0.30153765,3100.1,3098.9,0.98489868]
[1767888246318,0.30153765,3100.1,3098.8,0.98589868]
[1767888246524,0.30153765,3100.1,3099.0,3.22680163]
[1767888247024,0.30153765,3100.1,3098.9,4.21181721]
[1767888247193,0.30153765,3100.1,3098.9,4.95576337]
[1767888247392,0.30153765,3100.1,3098.9,1.72889328]
[1767888247623,6.4516129,3100.0,3098.9,4.95581079]
[1767888247811,0.30153765,3099.9,3098.9,4.95581079]
[1767888248008,3.22580645,3100.0,3098.9,8.18276228]
[1767888248213,3.95545494,3100.0,3098.9,8.18276228]
[1767888248515,0.30133611,3099.9,3098.9,8.18276228]
[1767888248716,3.95545494,3100.0,3098.9,8.18276228]
[1767888248914,0.30133611,3099.9,3099.0,0.93486887]
[1767888249226,3.2251131,3100.7,3099.2,0.93486887]
[1767888249429,0.30129762,3100.6,3099.4,0.93486887]
[1767888249630,0.30129762,3100.5,3099.6,0.93486887]
[1767888249797,7.36020291,3101.4,3099.8,0.93486887]
[1767888249995,1.90636188,3101.3,3099.8,0.93486887]
[1767888250322,0.30125823,3101.2,3099.8,0.93486887]
[1767888250525,0.30125823,3101.1,3100.0,0.93486887]
[1767888250825,1.60510365,3101.3,3100.1,0.96712589]
[1767888250826,0.30125823,3101.0,3100.1,0.96712589]
[1767888250997,0.73602029,3101.3,3100.1,0.93486887]
[1767888251324,0.69967642,3101.2,3100.1,0.93486887]
[1767888251532,3.22383055,3101.9,3100.1,0.96712589]
[1767888251730,0.30120493,3101.8,3100.8,7.38481727]
[1767888251917,0.02408336,3102.3,3100.9,0.93486887]
[1767888252125,0.002,3101.5,3100.9,0.93486887]
[1767888252298,0.3011331,3102.2,3100.8,6.4499484]
[1767888252299,0.02408336,3102.1,3100.8,6.4499484]
[1767888252497,0.02408336,3102.1,3100.8,7.1891113]
[1767888253731,3.22372662,3102.0,3100.8,7.1891113]
[1767888253931,0.02408336,3101.9,3100.8,7.1891113]
[1767888254132,0.02408336,3102.0,3100.8,7.1891113]
[1767888254431,3.22367012,3102.1,3100.8,7.1891113]
[1767888254432,0.91150233,3102.2,3100.8,7.1891113]
[1767888254628,0.17565023,3102.1,3100.9,0.71891113]
[1767888254833,0.93558569,3102.0,3100.9,0.71891113]
[1767888255022,0.93558569,3102.0,3100.8,3.2249742]
[1767888255198,0.93558569,3102.0,3100.8,6.4499484]
[1767888255397,0.93558569,3102.0,3100.6,0.845]
[1767888255708,0.93558569,3102.0,3099.6,14.59668063]
[1767888255709,0.91150233,3101.5,3100.1,3.22567849]
[1767888255917,0.91150233,3101.3,3099.8,0.845]
[1767888256119,0.91150233,3101.1,3099.9,3.22588633]
[1767888256299,0.93558569,3101.0,3099.8,0.845]
[1767888256498,0.93558569,3101.0,3099.3,0.93486887]
[1767888256499,0.30073116,3100.9,3099.4,0.845]
[1767888256699,0.32481452,3100.8,3099.5,3.40422714]
[1767888256929,0.02408336,3100.8,3099.6,3.22620894]
[1767888257127,0.02408336,3100.8,3099.7,3.22610761]
[1767888257128,0.30075738,3100.7,3099.7,3.22610761]
[1767888257336,0.02408336,3100.6,3099.6,3.22619083]
[1767888257829,0.02408336,3100.6,3099.5,3.40428035]
[1767888257830,3.22528624,3100.5,3099.5,3.40428035]
[1767888258129,3.22528624,3100.5,3099.5,3.22631091]
[1767888258130,0.67154105,3100.4,3099.5,3.22631091]
[1767888258534,0.64745769,3100.4,3099.5,6.45263773]
[1767888259029,3.22522563,3100.6,3099.5,6.45263773]
[1767888260632,0.91150233,3100.4,3099.2,0.001]
[1767888260810,9.6752346,3100.7,3099.2,0.001]
[1767888260811,0.93558569,3100.3,3099.2,0.001]
[1767888261230,1.75650233,3100.2,3099.2,0.001]
[1767888261429,0.17805857,3100.1,3099.2,3.22763557]
[1767888261930,0.17805857,3100.1,3099.2,0.001]
[1767888262508,0.91150233,3099.9,3099.2,0.001]
[1767888264842,3.22783113,3100.0,3099.2,0.001]
[1767888265712,0.002,3100.0,3099.2,0.001]
[1767888265930,3.22784151,3100.0,3099.2,0.001]
[1767888266133,0.75006905,3099.9,3099.2,0.001]
[1767888266519,3.22782117,3100.0,3099.2,0.001]
[1767888266927,0.002,3100.0,3099.2,0.001]
[1767888267543,0.02408336,3099.9,3099.2,0.001]
[1767888268340,0.002,3100.0,3099.2,0.93586887]
[1767888268917,0.002,3100.0,3099.3,6.45307004]
[1767888269119,0.002,3100.0,3099.4,0.73889389]
[1767888269312,0.002,3100.0,3099.5,0.93486887]
[1767888269516,0.002,3100.3,3099.6,0.93486887]
[1767888270647,0.002,3100.3,3099.5,0.03226326]
[1767888270648,0.02408336,3101.2,3099.8,0.93486887]
[1767888270862,0.02408336,3101.2,3099.7,0.845]
[1767888270863,6.44890852,3101.3,3100.0,0.93486887]
[1767888271013,1.02991706,3101.2,3100.1,0.73866899]
[1767888271218,3.22445426,3101.3,3100.1,0.73866899]
[1767888271413,0.91350233,3101.6,3100.2,0.93486887]
[1767888271723,3.22617674,3101.6,3100.2,0.93486887]
[1767888271918,3.2502601,3101.6,3100.2,0.93486887]
[1767888272731,0.92147987,3101.5,3100.1,0.73866899]
[1767888273044,0.73718334,3101.4,3100.3,0.90880119]
[1767888273340,0.002,3101.6,3100.6,0.90880119]
[1767888273711,0.002,3101.6,3100.2,12.90239336]
[1767888273712,7.37181018,3101.6,3100.2,6.45119668]
[1767888273929,0.02408336,3101.5,3100.2,6.45119668]
[1767888274241,1.79056323,3101.5,3100.2,3.22559834]
[1767888274431,1.74556922,3101.4,3100.2,3.22559834]
[1767888274635,1.74556922,3101.4,3100.2,6.45119668]
[1767888274932,0.82408935,3101.4,3100.2,7.35999787]
[1767888275315,0.002,3101.6,3100.3,0.90880119]
[1767888275540,3.22617561,3101.6,3100.3,0.90880119]
[1767888276045,0.002,3101.6,3100.3,0.90880119]
[1767888276340,3.22615234,3101.6,3100.3,0.90880119]
[1767888276908,0.002,3101.6,3100.4,7.35958173]
[1767888277115,0.002,3101.6,3100.6,0.90880119]
[1767888279154,0.002,3101.6,3099.9,3.32255386]
[1767888279155,0.94556323,3101.5,3099.7,0.90880119]
[1767888279317,0.92147987,3101.3,3099.8,3.22600895]
[1767888279664,0.92147987,3101.1,3099.7,0.90880119]
[1767888279887,0.92147987,3100.9,3099.5,0.001]
[1767888280183,1.24605243,3100.8,3099.6,3.22618049]
[1767888280335,0.94556323,3100.8,3099.8,3.22600783]
[1767888280543,0.94556323,3100.8,3099.5,0.90980119]
[1767888280838,0.94556323,3100.8,3099.8,3.22600648]
[1767888281076,3.2250782,3100.7,3099.6,3.22621261]
[1767888281257,3.2250782,3100.7,3099.6,7.18866209]
[1767888281258,0.76364581,3100.6,3099.6,7.18866209]
[1767888282274,0.94556323,3100.8,3099.6,7.18866209]
[1767888282573,0.02408336,3100.6,3099.6,3.96243936]
[1767888282977,0.02408336,3100.6,3099.6,7.18866209]
[1767888283397,3.2491724,3100.7,3099.7,0.90880119]
[1767888283573,3.2491724,3100.7,3099.6,7.18866209]
[1767888283574,0.02408336,3100.7,3099.6,7.18866209]
[1767888283872,0.52563983,3100.7,3099.7,0.71896621]
[1767888284061,0.50155647,3100.7,3099.7,0.71896621]
[1767888284263,0.02408336,3100.8,3099.7,1.6277674]
[1767888284684,3.22491023,3100.9,3099.7,1.6277674]
[1767888284885,0.92147987,3101.2,3099.7,1.6277674]
[1767888284886,3.22435029,3101.4,3099.8,0.90880119]
[1767888285049,3.22435029,3101.4,3099.7,1.59622739]
[1767888285050,3.52523827,3101.3,3100.1,7.36020597]
[1767888285377,4.14580064,3101.5,3100.2,0.90880119]
[1767888285378,0.35252383,3101.2,3100.2,0.90880119]
[1767888285678,3.22432592,3101.5,3100.2,0.94105717]
[1767888285865,0.30085893,3101.4,3100.2,0.94105717]
[1767888286175,3.22615844,3101.6,3100.2,0.94105717]
[1767888286381,0.002,3101.6,3100.3,0.90880119]
[1767888286541,0.002,3101.6,3100.4,0.94105509]
[1767888286869,0.92347987,3101.6,3100.1,10.58590836]
[1767888287040,0.92347987,3101.6,3100.4,0.845]
[1767888287235,0.002,3101.6,3100.5,6.45057248]
[1767888287540,0.002,3101.6,3100.5,7.35937367]
[1767888288254,0.02608336,3101.6,3100.5,7.35937367]
[1767888289266,0.002,3101.6,3100.5,7.35937367]
[1767888289466,0.002,3101.6,3100.6,0.73593737]
[1767888289661,3.2261469,3101.6,3100.6,0.73593737]
[1767888289862,0.002,3101.6,3100.6,1.64473856]
[1767888290571,0.002,3101.3,3100.6,1.64473856]
[1767888290994,0.002,3101.3,3100.7,0.90880119]
[1767888291172,0.002,3101.3,3100.8,0.16447386]
[1767888291476,0.92347987,3101.3,3100.0,3.22576275]
[1767888291684,0.92147987,3101.1,3099.7,1.56396621]
[1767888291865,0.92147987,3101.1,3100.0,3.22571069]
[1767888291866,0.02408336,3101.0,3100.0,3.22571069]
[1767888292173,0.02408336,3101.0,3099.7,0.845]
[1767888292174,0.02408336,3101.0,3099.9,3.22583046]
[1767888292353,0.02408336,3101.0,3100.0,3.22578628]
[1767888292674,0.02408336,3101.0,3100.1,3.22570135]
[1767888293042,0.02408336,3101.0,3100.0,3.22575402]
[1767888293246,0.02408336,3101.0,3100.0,3.87092028]
[1767888293247,3.22487019,3100.9,3100.0,3.87092028]
[1767888293486,0.02408336,3100.8,3100.0,3.87092028]
[1767888293973,3.22487019,3100.9,3100.0,0.64516626]
[1767888293974,6.44974038,3100.9,3100.0,0.64516626]
[1767888294137,6.44974038,3100.9,3099.6,0.845]
[1767888294341,0.92147987,3100.7,3099.5,0.001]
[1767888294576,0.92147987,3100.5,3099.5,0.001]
[1767888294778,0.02408336,3100.4,3099.5,3.22725373]
[1767888295085,0.02408336,3100.4,3099.6,0.32272537]
[1767888295384,0.02408336,3100.4,3099.5,0.001]
[1767888295385,0.94556323,3100.4,3099.5,0.001]
[1767888295573,4.14697417,3100.3,3099.5,0.001]
[1767888295776,0.92147987,3100.2,3099.5,0.001]
[1767888298695,4.14708766,3100.2,3099.5,0.001]
[1767888299359,0.92147987,3100.1,3099.2,0.001]
[1767888299554,0.92147987,3100.0,3099.2,0.001]
[1767888300085,3.22591051,3099.9,3099.2,0.001]
[1767888300452,0.92147987,3099.8,3099.2,0.001]
[1767888300655,0.41470877,3100.1,3099.2,0.90980119]
[1767888300854,0.92147987,3100.9,3099.3,0.94106654]
[1767888301091,1.76647987,3100.8,3099.3,0.94106654]
[1767888301388,0.92147987,3100.7,3099.3,0.90880119]
[1767888301557,0.92147987,3100.5,3099.3,0.90880119]
[1767888301756,0.02408336,3100.4,3099.3,0.90880119]
[1767888301952,0.02408336,3100.4,3099.4,7.36166303]
[1767888302252,3.22465769,3101.2,3099.6,0.90880119]
[1767888302253,0.845,3101.0,3099.6,0.90880119]
[1767888302485,0.30112311,3100.9,3099.8,0.9286222]
[1767888302797,0.30112311,3100.8,3099.8,0.9286222]
[1767888303164,0.02408336,3100.7,3099.8,0.9286222]
[1767888303367,0.02408336,3100.7,3099.8,0.001]
[1767888303368,0.30114388,3100.6,3099.8,0.001]
[1767888303569,0.32523856,3100.5,3099.8,0.001]
[1767888303780,1.85989542,3100.5,3099.8,0.001]
[1767888304096,0.18598954,3100.4,3099.8,0.001]
[1767888304298,3.41142069,3100.4,3099.8,0.001]
[1767888304590,0.02408336,3100.3,3099.8,0.001]
[1767888305285,0.99081206,3100.2,3099.2,0.001]
[1767888305502,0.98444114,3100.0,3098.8,0.001]
[1767888305653,0.98444114,3099.8,3098.8,3.22801644]
[1767888305858,0.98444114,3099.8,3098.9,3.2269107]
[1767888306297,0.98444114,3099.8,3098.9,3.22695149]
[1767888306460,0.98444114,3099.8,3098.9,6.45390298]
[1767888306877,0.845,3100.1,3098.9,6.45390298]
[1767888307186,0.98444114,3099.9,3098.8,3.8735459]
[1767888307388,0.02408336,3099.8,3098.9,0.71006323]
[1767888307584,0.98444114,3099.9,3098.9,0.71006323]
[1767888307787,0.86908336,3100.0,3098.9,0.71006323]
[1767888308167,3.22601458,3099.8,3098.9,0.71006323]
[1767888308374,0.02408336,3099.7,3098.8,3.22799494]
[1767888308676,0.02408336,3099.7,3098.8,0.001]
[1767888309069,1.0085245,3099.7,3098.8,0.001]
[1767888309600,1.0085245,3099.7,3098.2,0.96415939]
[1767888309601,0.98444114,3099.3,3097.8,0.96515939]
[1767888309827,0.30104475,3099.2,3097.8,0.96515939]
[1767888309988,1.14604475,3099.2,3098.0,4.19196605]
[1767888310183,3.22674324,3099.1,3098.2,0.96415939]
[1767888310406,6.45348648,3099.1,3098.2,0.96415939]
[1767888310621,7.43792762,3099.1,3097.8,4.19323692]
[1767888310821,7.43792762,3099.1,3098.0,3.22788101]
[1767888310994,3.22674324,3099.1,3098.1,3.22775122]
[1767888311197,3.22664727,3099.2,3098.2,0.41919106]
[1767888311198,0.845,3099.0,3098.2,0.41919106]
[1767888311401,0.845,3099.0,3097.9,0.96415939]
[1767888311801,0.845,3099.0,3098.1,3.22772626]
[1767888312001,1.82944114,3099.0,3097.8,0.001]
[1767888312203,6.45390298,3098.9,3097.8,0.001]
[1767888312716,7.43834412,3098.9,3097.8,0.001]
[1767888313022,1.67333441,3098.8,3097.8,0.001]
[1767888313221,0.82833441,3098.8,3097.8,0.001]
[1767888313551,0.845,3098.9,3097.8,0.001]
[1767888313945,7.29978264,3099.0,3097.8,0.001]
[1767888314225,4.07289132,3099.0,3097.8,0.001]
[1767888315806,3.22689132,3099.0,3097.8,0.001]
[1767888315991,4.07289132,3099.0,3097.8,0.001]
[1767888316198,0.75645519,3098.9,3097.8,0.74317466]
[1767888316698,0.75645519,3098.9,3097.9,6.4559863]
[1767888316907,3.98342378,3098.9,3097.9,3.22799315]
[1767888317104,0.98444114,3098.8,3097.8,3.9712685]
[1767888317315,0.98444114,3098.8,3097.8,0.001]
[1767888317522,0.98444114,3098.8,3097.8,3.22902398]
[1767888317840,4.94378156,3098.9,3097.8,3.22902398]
[1767888318029,8.17075015,3098.9,3098.1,0.001]
[1767888318332,0.98444114,3098.7,3098.1,0.001]
[1767888318543,0.98444114,3098.7,3097.8,0.001]
[1767888318544,1.0085245,3098.7,3097.8,0.001]
[1767888318830,0.98444114,3098.5,3097.8,0.001]
[1767888319039,1.83044114,3098.5,3097.8,0.001]
[1767888319236,0.98444114,3098.4,3097.8,0.001]
[1767888319546,0.18304411,3098.3,3097.8,0.001]
[1767888320010,0.846,3098.5,3097.8,0.001]
[1767888320708,0.98444114,3099.4,3097.8,0.96515939]
[1767888320909,0.002,3099.5,3098.0,0.96415939]
[1767888321225,0.002,3099.5,3098.2,0.96415939]
[1767888321402,0.002,3099.5,3098.0,0.03227888]
[1767888321403,0.002,3099.5,3098.4,0.96415939]
[1767888321736,3.22534794,3100.5,3099.1,0.96415939]
[1767888321938,0.846,3100.7,3099.2,0.96415939]
[1767888322100,0.02408336,3100.5,3099.2,1.14507533]
[1767888322909,3.22528624,3100.5,3099.3,6.45307004]
[1767888323330,0.98444114,3100.4,3099.3,6.45307004]
[1767888323561,3.22491577,3100.9,3099.4,0.96415939]
[1767888323840,0.98444114,3100.7,3099.3,9.67960506]
[1767888324030,0.98444114,3100.7,3099.4,0.9860521]
[1767888324404,0.846,3100.9,3099.5,0.96415939]
[1767888324635,0.30042926,3100.8,3099.5,0.96415939]
[1767888324849,0.846,3100.9,3099.6,7.41660485]
[1767888325031,0.846,3100.9,3099.7,1.70581987]
[1767888325232,4.07088671,3100.9,3099.7,1.70581987]
[1767888325544,0.846,3100.9,3099.7,1.70581987]
[1767888325746,0.002,3101.0,3099.7,0.74166048]
[1767888325919,0.002,3101.0,3099.8,0.96415939]
[1767888326257,0.002,3101.0,3099.9,1.13474138]
[1767888326646,1.0085245,3100.9,3099.7,0.74166048]
[1767888326954,3.2250782,3100.7,3099.3,6.45307004]
[1767888327153,0.02408336,3100.6,3099.3,6.45307004]
[1767888327725,3.2250782,3100.7,3099.3,6.45307004]
[1767888328021,0.02408336,3100.6,3099.3,6.45307004]
[1767888328852,0.02408336,3100.6,3099.3,7.41722943]
[1767888329050,4.07979885,3100.6,3099.5,6.45265364]
[1767888329251,7.30505536,3100.6,3099.5,3.22632682]
[1767888329555,7.280972,3100.6,3099.5,3.22632682]
[1767888329756,4.05571549,3100.6,3099.5,3.22632682]
[1767888330063,0.846,3100.7,3099.6,0.96415939]
[1767888330648,0.846,3100.8,3099.6,0.96415939]
[1767888330956,1.30880235,3100.7,3099.5,3.22632682]
[1767888331257,3.22518222,3100.6,3099.5,3.22632682]
[1767888331424,0.02408336,3100.5,3099.5,3.22632682]
[1767888331620,0.32492656,3100.4,3099.5,3.22632682]
[1767888331858,0.02608336,3100.3,3099.4,3.22642262]
[1767888332167,0.002,3100.3,3099.4,3.22642262]
[1767888332361,0.002,3100.3,3099.4,3.22642828]
[1767888333262,0.002,3100.3,3099.1,3.22674324]
[1767888333463,0.35964544,3100.3,3099.2,0.41845238]
[1767888334460,0.002,3100.6,3099.9,0.92551211]
[1767888334639,0.002,3101.3,3100.3,0.92551211]
[1767888335036,0.002,3101.3,3100.0,0.845]
[1767888335244,0.002,3101.3,3100.0,4.0707617]
[1767888335245,6.45090852,3101.3,3100.0,4.0707617]
[1767888335566,0.002,3101.3,3100.2,0.92551211]
[1767888336140,0.002,3101.3,3100.5,0.09668063]
[1767888336358,0.002,3101.3,3100.6,0.845]
[1767888336545,0.002,3101.3,3100.7,0.92551211]
[1767888337370,0.96499742,3101.3,3099.5,0.92551211]
[1767888337667,0.96299742,3101.1,3099.7,3.22603632]
[1767888337871,0.96299742,3101.1,3099.5,0.92551211]
[1767888337872,1.14487431,3101.0,3099.5,0.92551211]
[1767888338069,0.845,3101.0,3099.5,0.92551211]
[1767888338259,0.96299742,3101.1,3099.7,0.92551211]
[1767888338577,1.14399716,3101.2,3100.1,3.22562531]
[1767888338765,0.19909972,3101.1,3100.1,3.22562531]
[1767888338970,1.16209714,3101.1,3099.6,3.2261362]
[1767888339274,0.96299742,3100.9,3099.4,3.22635697]
[1767888339473,0.96299742,3100.8,3099.4,3.22635697]
[1767888339644,0.845,3100.7,3099.4,3.22635697]
[1767888339837,0.18079974,3100.6,3099.4,3.72604388]
[1767888340662,3.40604931,3100.6,3099.4,6.9524748]
[1767888341140,0.18079974,3100.6,3099.5,0.03226326]
[1767888341672,0.18079974,3100.6,3099.4,3.72604388]
[1767888341970,0.18079974,3100.6,3099.4,6.9524748]
[1767888342176,0.18079974,3100.6,3099.5,0.69524748]
[1767888342744,1.14379716,3100.6,3099.6,6.45244546]
[1767888342953,0.18079974,3100.6,3099.6,6.45244546]
[1767888343157,0.96299742,3100.7,3099.5,0.69524748]
[1767888343356,0.96299742,3100.5,3099.2,3.22661465]
[1767888343663,0.96299742,3100.5,3099.4,3.22634588]
[1767888344171,0.96299742,3100.5,3098.9,0.92551211]
[1767888344172,0.96299742,3100.5,3099.5,3.22632403]
[1767888344342,3.57449799,3100.7,3099.4,3.22634497]
[1767888344343,0.96299742,3100.4,3099.4,3.22634497]
[1767888344540,0.96299742,3100.4,3099.5,6.45264255]
[1767888344747,0.96299742,3100.4,3099.3,0.03226535]
[1767888344748,0.96299742,3100.4,3099.4,6.45286184]
[1767888345266,0.18079974,3100.3,3099.4,6.45286184]
[1767888345466,0.845,3100.7,3099.4,10.60480487]
[1767888345686,0.845,3100.7,3099.4,7.37837395]
[1767888346055,0.96299742,3100.5,3099.4,3.22643092]
[1767888346444,0.44805037,3101.8,3099.4,3.22643092]
[1767888346445,1e-08,3102.9,3101.6,0.92551211]
[1767888346643,0.16811495,3103.2,3103.0,12.361733]
[1767888346644,0.12339153,3103.2,3103.0,12.361733]
[1767888346886,3.31824151,3104.1,3103.0,2.20984191]
[1767888347051,0.33182415,3104.0,3103.8,0.04486733]
[1767888347249,0.33182415,3104.0,3103.0,2.20984191]
[1767888347458,0.33182415,3104.0,3103.2,12.238342]
[1767888347989,0.09668063,3103.8,3102.8,12.238342]
[1767888348178,0.09668063,3103.6,3102.8,12.238342]
[1767888348386,0.09668063,3103.5,3102.8,12.238342]
[1767888348683,0.09668063,3103.1,3101.6,3.22413499]
[1767888348889,0.09668063,3103.1,3102.3,12.133231]
[1767888349376,4.18508356,3103.6,3101.7,0.41496471]
[1767888349377,0.09668063,3103.7,3102.9,12.133231]
[1767888349575,0.845,3103.8,3102.9,12.133231]
[1767888350889,0.845,3103.9,3102.9,12.133231]
[1767888351059,0.22365022,3103.9,3103.1,12.133231]
[1767888351378,0.22365022,3103.9,3102.4,0.92551211]
[1767888351379,0.845,3104.0,3103.2,12.133231]
[1767888351757,0.94168063,3104.0,3103.2,12.133231]
[1767888352287,0.94168063,3104.2,3103.2,12.133231]
[1767888352878,0.002,3104.4,3103.6,12.133231]
[1767888353186,0.002,3104.4,3103.7,12.133231]
[1767888353356,0.847,3104.4,3103.7,12.133231]
[1767888353975,0.847,3104.4,3103.2,6.44496004]
[1767888353976,0.002,3104.4,3103.8,12.133231]
[1767888354176,0.002,3104.7,3103.8,12.133231]
[1767888354989,0.002,3104.7,3104.2,12.133231]
[1767888355586,3.31600739,3106.3,3104.2,12.133231]
[1767888355587,0.96299742,3105.8,3104.2,12.133231]
[1767888355791,0.96299742,3105.6,3104.2,12.133231]
[1767888355990,0.96299742,3105.4,3104.6,10.03801755]
[1767888356194,0.94168063,3105.3,3104.1,9.98801755]
[1767888356504,0.94168063,3105.3,3103.4,0.92551211]
[1767888356505,0.09668063,3104.9,3103.8,9.98801755]
[1767888357065,7.28663874,3104.8,3103.8,9.98801755]
[1767888357493,3.22050819,3105.1,3104.2,9.988018]
[1767888357705,4.06550819,3105.1,3104.2,9.988018]
[1767888358013,7.28601638,3105.1,3104.2,9.988018]
[1767888358194,0.77376342,3105.0,3104.2,9.988018]
[1767888359193,0.002,3104.4,3103.9,0.92551211]
[1767888359763,0.002,3104.4,3104.0,0.92551211]
[1767888360008,0.002,3104.4,3104.2,9.988018]
[1767888361200,0.002,3104.4,3104.2,0.92551211]
[1767888361881,0.002,3104.7,3104.3,0.92551211]
[1767888362410,0.002,3104.7,3103.8,0.98907413]
[1767888362570,0.847,3104.7,3103.8,1.07709213]
[1767888363087,6.44205372,3104.6,3103.4,0.98907413]
[1767888363289,0.72890537,3104.5,3103.4,0.98907413]
[1767888363799,3.57449799,3104.1,3103.0,0.98907413]
[1767888363972,0.845,3104.0,3102.4,0.98907413]
[1767888364178,0.94168063,3104.0,3102.5,0.98907413]
[1767888364672,0.94168063,3104.0,3102.6,0.98907413]
[1767888365169,0.94168063,3104.0,3102.7,0.98907413]
[1767888365170,6.44350654,3103.9,3102.7,0.98907413]
[1767888365370,0.73851872,3103.8,3102.9,0.98907413]
[1767888365570,6.44350654,3103.9,3103.1,0.90341418]
[1767888367180,6.44350654,3103.9,3102.2,3.22348432]
[1767888367181,6.44329896,3104.0,3102.7,0.90341418]
[1767888367397,9.66494844,3104.0,3102.7,0.90341418]
[1767888368108,6.44329896,3104.0,3102.8,0.90341418]
[1767888369409,6.44329896,3104.0,3102.8,4.1262569]
[1767888369608,1.4893299,3103.9,3102.9,0.90341418]
[1767888370314,1.4893299,3103.9,3102.5,0.90341418]
[1767888370923,1.4893299,3103.9,3102.7,0.90341418]
[1767888371415,9.66557121,3103.8,3102.7,0.90341418]
[1767888371574,1.11549011,3103.7,3102.7,0.90341418]
[1767888371997,1.11549011,3103.7,3103.2,0.001]
[1767888372196,1.11549011,3103.7,3102.7,0.90341418]
[1767888372611,4.6899881,3103.7,3102.3,0.90341418]
[1767888372808,1.7674097,3103.6,3102.3,0.90341418]
[1767888373613,1.7674097,3103.6,3102.4,0.90341418]
[1767888373614,0.845,3103.5,3102.4,0.90341418]
[1767888373823,3.22144191,3104.2,3102.4,0.93564728]
[1767888374000,0.845,3103.8,3102.4,0.93564728]
[1767888374794,0.845,3103.8,3102.4,0.90341418]
[1767888375628,9.66588264,3103.7,3102.4,0.90341418]
[1767888375800,1.06075633,3103.6,3102.4,0.90341418]
[1767888376500,1.06075633,3103.6,3102.5,0.90341418]
[1767888376698,0.845,3104.2,3102.7,0.90341418]
[1767888377624,3.22123437,3104.4,3102.9,0.90341418]
[1767888377928,0.845,3104.4,3103.4,0.90341418]
[1767888378095,0.845,3104.5,3103.4,0.90341418]
[1767888378497,0.002,3104.7,3103.4,0.90341418]
[1767888378714,0.002,3104.7,3103.6,0.90341418]
[1767888378921,0.002,3104.7,3103.8,0.90341418]
[1767888379796,0.002,3104.7,3103.8,4.9692711]
[1767888380192,0.002,3104.7,3103.9,0.90341418]
[1767888380439,6.44039414,3105.4,3104.2,0.90341418]
[1767888380440,3.22019707,3105.4,3104.2,0.90341418]
[1767888380731,0.64403199,3105.4,3104.2,0.90341418]
[1767888380910,6.44023048,3105.5,3104.2,0.90341418]
[1767888381712,3.8690666,3105.6,3104.4,0.90341418]
[1767888381911,0.09668063,3105.9,3104.3,3.22133814]
[1767888381912,3.21968245,3105.9,3104.6,0.90341418]
[1767888382320,0.002,3106.0,3104.6,0.90341418]
[1767888382708,3.22159171,3106.0,3104.6,0.90341418]
[1767888382914,0.32215917,3105.9,3104.7,1.4356054]
[1767888383143,0.32215917,3105.9,3104.5,0.844]
[1767888383144,0.32215917,3105.9,3104.8,0.90341418]
[1767888383313,0.32215917,3105.9,3104.8,1.74741418]
[1767888384047,3.21978234,3105.8,3104.8,1.74741418]
[1767888384239,6.43956468,3105.8,3104.8,1.74741418]
[1767888384431,0.002,3105.2,3104.8,1.74741418]
[1767888384838,0.002,3105.2,3104.8,4.96823213]
[1767888385144,0.002,3105.2,3104.8,8.1890515]
[1767888385852,0.002,3105.2,3104.8,4.96823213]
[1767888386350,0.002,3105.2,3104.8,8.1890515]
[1767888386560,0.002,3106.0,3104.9,0.90341418]
[1767888387727,0.002,3106.5,3106.0,0.90341418]
[1767888388046,0.002,3106.5,3105.7,3.57449799]
[1767888388047,0.002,3106.5,3106.2,0.90341418]
[1767888388548,0.002,3106.5,3106.2,0.844]
[1767888389461,0.002,3106.5,3105.4,0.90341418]
[1767888389648,0.002,3106.5,3105.5,0.844]
[1767888390257,0.002,3106.5,3104.8,0.81890515]
[1767888390258,0.002,3106.5,3105.2,0.844]
[1767888391325,0.002,3106.5,3105.3,0.90341418]
[1767888392145,0.002,3106.5,3105.4,3.22019707]
[1767888392330,0.64399064,3106.4,3105.3,4.12368909]
[1767888392532,0.64399064,3106.4,3105.3,0.90341418]
[1767888392733,0.64399064,3106.4,3105.4,0.96871457]
[1767888392949,0.002,3106.5,3105.4,0.96871457]
[1767888394350,0.002,3106.5,3105.6,0.96871457]
[1767888394546,0.002,3106.5,3105.8,0.96871457]